fUST/lending_fUST_20240621
["ID","MTS","AMOUNT","RATE_DAILY","PERIOD"]
[330007892,1718926244154,-940.32625,0.00055068,120]
[330007893,1718926244164,-1285.09,0.00055068,120]
[330007894,1718926244174,-940.32625,0.00055068,120]
[330007895,1718926244183,-940.32625,0.00055068,120]
[330007896,1718926244192,-500.0,0.00055068,120]
[330007897,1718926244201,-497.49243428,0.00055068,120]
[330007898,1718926244210,-306.60076988,0.00055068,120]
[330007899,1718926244446,-771.3,0.00054794,120]
[330007900,1718926244455,-151.0,0.00055067,120]
[330007901,1718926244464,-464.89923012,0.00055068,120]
[330007902,1718926244473,-8748.13,0.00055068,120]
[330007903,1718926244482,-500.0,0.00055068,120]
[330007904,1718926244492,-500.0,0.00055068,120]
[330007905,1718926244501,-151.0,0.00055068,120]
[330007906,1718926244509,-151.0,0.00055068,120]
[330007907,1718926244519,-1194.8,0.00055068,120]
[330007908,1718926244532,-502.66,0.00055068,120]
[330007909,1718926244542,-638.04441548,0.00055068,120]
[330007910,1718926244755,-732.98,0.00055057,3]
[330007911,1718926244764,-160.74558452,0.00055068,120]
[330007912,1718926244773,-500.0,0.00055068,7]
[330007913,1718926244783,-24298.54,0.00055068,120]
[330007914,1718926244792,-500.0,0.00055068,120]
[330007915,1718926244801,-500.0,0.00055068,120]
[330007916,1718926244810,-646.53,0.00055068,120]
[330007917,1718926244820,-2058.7,0.00055068,120]
[330007918,1718926244830,-500.0,0.00055068,120]
[330007919,1718926244840,-719.82,0.00055068,120]
[330007920,1718926244849,-618.38,0.00055068,120]
[330007921,1718926244859,-500.0,0.00055068,120]
[330007922,1718926244868,-548.11,0.00055068,120]
[330007923,1718926244878,-500.0,0.00055068,120]
[330007924,1718926244887,-500.0,0.00055068,120]
[330007925,1718926244896,-500.0,0.00055068,120]
[330007926,1718926244906,-718.95,0.00055068,120]
[330007927,1718926244915,-354.84866601,0.00055068,120]
[330007928,1718926244923,-5486.47,0.00055068,120]
[330007929,1718926244932,-1894.01,0.00055068,120]
[330007930,1718926244942,-500.0,0.00055068,120]
[330007931,1718926244951,-500.0,0.00055068,120]
[330007932,1718926244960,-0.68421932,0.00055068,120]
[330007933,1718926245010,-41.87200163,0.00055068,120]
[330007946,1718926250440,185.356698,0.00021096,2]
[330007947,1718926309750,235.3026276,0.0002557,2]
[330007949,1718926441441,88642.0,0.00025999,60]
[330007951,1718926458873,3702.0,0.00025999,60]
[330007961,1718926917581,1500.63244989,9.999e-05,2]
[330007963,1718927195319,-185.356698,0.00021096,2]
[330007964,1718927195340,-5.94976387,0.00022998,2]
[330007965,1718927237140,-294.0,0.00022998,2]
[330007966,1718927237160,-1492.33293742,0.00022999,2]
[330007967,1718927249148,-8600.16045795,0.00022999,2]
[330007968,1718927352144,-300.0,0.00022998,2]
[330007969,1718927352163,-300.0,0.00022998,2]
[330007970,1718927352182,-3150.67657521,0.00022999,2]
[330007971,1718927352201,-11112.05682486,0.00022999,2]
[330007972,1718927352220,-4745.58,0.00023,2]
[330007973,1718927352242,-183.70797062,0.00029542,2]
[330007974,1718927352367,-1567.96778615,0.00029596,2]
[330007975,1718927352389,-1582.96582005,0.00029695,7]
[330007976,1718927352409,-1582.96582005,0.00029695,7]
[330007977,1718927352431,-5054.13907223,0.00031577,2]
[330007978,1718927354123,-3835.04962777,0.00031577,2]
[330007979,1718927354144,-173.157742,0.00033975,2]
[330007981,1718927369341,1582.96582005,0.00029655,7]
[330007982,1718927388463,705.58178986,0.00029596,2]
[330007983,1718927420842,496.37464931,0.00035873,14]
[330007996,1718927432462,-8000.502489,0.00029696,7]
[330007997,1718927432473,-553.4887,0.00029696,7]
[330007998,1718927432485,-1926.80440918,0.00029696,7]
[330007999,1718927432495,-534.87830761,0.00029696,2]
[330008000,1718927432504,-2980.9877163,0.0005,4]
[330008001,1718927432516,-3479.9,0.0005,4]
[330008058,1718927438653,-356.93879695,0.0005,4]
[330008059,1718927438666,-10775.76587571,0.0005,4]
[330008060,1718927438676,-2439.84,0.00052999,60]
[330008061,1718927438686,-2439.84,0.00052999,60]
[330008062,1718927438695,-2439.84,0.00052999,60]
[330008063,1718927438705,-2439.84,0.00052999,60]
[330008064,1718927438715,-2439.84,0.00052999,60]
[330008065,1718927438724,-2439.84,0.00052999,60]
[330008066,1718927438734,-2439.84,0.00052999,60]
[330008067,1718927438744,-2439.84,0.00052999,60]
[330008068,1718927438753,-2439.84,0.00052999,60]
[330008069,1718927438763,-2439.84,0.00052999,60]
[330008070,1718927438773,-2439.84,0.00052999,60]
[330008072,1718927438916,-2439.84,0.00052999,60]
[330008073,1718927438927,-2439.84,0.00052999,60]
[330008074,1718927438936,-2439.84,0.00052999,60]
[330008075,1718927438946,-2439.84,0.00052999,60]
[330008076,1718927438955,-2439.84,0.00052999,60]
[330008077,1718927438965,-2439.84,0.00052999,60]
[330008078,1718927438974,-2439.84,0.00052999,60]
[330008079,1718927438984,-2439.84,0.00052999,60]
[330008080,1718927438996,-2439.84,0.00052999,60]
[330008081,1718927439005,-2439.84,0.00052999,60]
[330008082,1718927439015,-2439.84,0.00052999,60]
[330008083,1718927439024,-2439.84,0.00052999,60]
[330008084,1718927439035,-2439.86021086,0.00052999,60]
[330008085,1718927439045,-200152.71,0.00053,120]
[330008086,1718927439055,-150.5,0.0005329,62]
[330008087,1718927439064,-195.45,0.0005329,62]
[330008088,1718927439077,-21662.1949331,0.000533,120]
[330008089,1718927439086,-150.0,0.00053311,120]
[330008090,1718927439096,-777.89782586,0.00054297,6]
[330008091,1718927439107,-8866.0,0.000543,120]
[330008092,1718927439117,-2000.0,0.000544,120]
[330008093,1718927439127,-2000.0,0.000544,120]
[330008094,1718927439138,-2000.0,0.000544,120]
[330008095,1718927439149,-2000.0,0.000544,120]
[330008096,1718927439159,-2000.0,0.000544,120]
[330008097,1718927439170,-2000.0,0.000544,120]
[330008098,1718927439181,-2000.0,0.000544,120]
[330008099,1718927439191,-2000.0,0.000544,120]
[330008100,1718927439201,-2000.0,0.000544,120]
[330008101,1718927439211,-2000.0,0.000544,120]
[330008102,1718927439222,-2000.0,0.000544,120]
[330008103,1718927439232,-2000.0,0.000544,120]
[330008104,1718927439242,-183.0,0.000544,120]
[330008105,1718927439252,-8505.43224576,0.00054478,2]
[330008106,1718927439263,-1047.54,0.00054793,120]
[330008107,1718927439277,-500.0,0.00054794,120]
[330008108,1718927439288,-387.9305066,0.00054794,120]
[330008109,1718927439298,-500.0,0.00054794,120]
[330008110,1718927439308,-500.0,0.00054794,120]
[330008111,1718927439318,-500.0,0.00054794,120]
[330008112,1718927439328,-500.0,0.00054794,120]
[330008113,1718927439338,-597.35,0.00054794,120]
[330008114,1718927439349,-500.0,0.00054794,120]
[330008115,1718927439359,-500.0,0.00054794,120]
[330008116,1718927439369,-500.0,0.00054794,120]
[330008117,1718927439380,-500.0,0.00054794,120]
[330008118,1718927439390,-500.0,0.00054794,120]
[330008119,1718927439400,-500.0,0.00054794,120]
[330008120,1718927439411,-500.0,0.00054794,120]
[330008121,1718927439421,-500.0,0.00054794,120]
[330008122,1718927439431,-2218.88,0.00054794,120]
[330008123,1718927439441,-500.0,0.00054794,120]
[330008124,1718927439451,-500.0,0.00054794,120]
[330008125,1718927439462,-500.0,0.00054794,120]
[330008126,1718927439472,-500.0,0.00054794,120]
[330008127,1718927439482,-500.0,0.00054794,120]
[330008128,1718927439493,-502.77305825,0.00054794,120]
[330008129,1718927439502,-500.0,0.00054794,120]
[330008130,1718927439512,-500.0,0.00054794,120]
[330008131,1718927439523,-500.0,0.00054794,120]
[330008132,1718927439533,-500.0,0.00054794,120]
[330008133,1718927439545,-500.0,0.00054794,120]
[330008134,1718927439555,-504.43232428,0.00054794,120]
[330008135,1718927439566,-500.0,0.00054794,120]
[330008136,1718927439576,-500.0,0.00054794,120]
[330008137,1718927439586,-500.0,0.00054794,120]
[330008138,1718927439596,-500.0,0.00054794,120]
[330008139,1718927439606,-500.0,0.00054794,120]
[330008140,1718927439616,-500.0,0.00054794,120]
[330008141,1718927439626,-500.0,0.00054794,120]
[330008142,1718927439636,-786.11,0.00054794,120]
[330008143,1718927439646,-500.0,0.00054794,120]
[330008144,1718927439657,-322.50051869,0.00054794,120]
[330008145,1718927439668,-236.5197406,0.00054794,120]
[330008146,1718927439678,-842.73,0.00054794,120]
[330008147,1718927439688,-515.73513593,0.00054794,120]
[330008148,1718927439698,-495.93375326,0.00054794,120]
[330008149,1718927439708,-2200.39,0.00054794,120]
[330008150,1718927439718,-2577.43,0.00054794,120]
[330008151,1718927439728,-500.0,0.00054794,2]
[330008152,1718927439738,-500.0,0.00054794,120]
[330008153,1718927439747,-500.0,0.00054794,120]
[330008154,1718927439757,-500.0,0.00054794,120]
[330008155,1718927439767,-500.0,0.00054794,120]
[330008156,1718927439777,-500.0,0.00054794,120]
[330008157,1718927439788,-500.0,0.00054794,120]
[330008158,1718927439798,-500.0,0.00054794,120]
[330008159,1718927439808,-500.0,0.00054794,120]
[330008160,1718927439818,-923.7,0.00054794,120]
[330008161,1718927439828,-500.0,0.00054794,120]
[330008162,1718927439838,-1467.03,0.00054794,120]
[330008163,1718927439848,-500.0,0.00054794,120]
[330008164,1718927439859,-591.36,0.00054794,7]
[330008165,1718927439869,-500.0,0.00054794,120]
[330008166,1718927439879,-1976.21,0.00054794,120]
[330008167,1718927439890,-1794.24,0.00054794,120]
[330008168,1718927439900,-500.0,0.00054794,120]
[330008169,1718927439910,-500.0,0.00054794,120]
[330008170,1718927439920,-500.0,0.00054794,120]
[330008171,1718927439931,-505.79444727,0.00054794,120]
[330008172,1718927439941,-500.0,0.00054794,120]
[330008173,1718927439951,-346.59848142,0.00054794,120]
[330008174,1718927439961,-500.0,0.00054794,120]
[330008175,1718927439971,-500.0,0.00054794,120]
[330008176,1718927439981,-500.0,0.00054794,120]
[330008177,1718927439994,-500.0,0.00054794,120]
[330008178,1718927440004,-430.87503417,0.00054794,120]
[330008179,1718927440014,-500.0,0.00054794,120]
[330008180,1718927440024,-500.0,0.00054794,120]
[330008181,1718927440035,-928.27,0.00054794,120]
[330008182,1718927440047,-510.48259035,0.00054794,120]
[330008183,1718927440056,-500.0,0.00054794,120]
[330008184,1718927440071,-519.69390465,0.00054794,120]
[330008185,1718927440081,-501.42818865,0.00054794,120]
[330008186,1718927440092,-500.0,0.00054794,120]
[330008187,1718927440102,-500.0,0.00054794,120]
[330008188,1718927440112,-500.0,0.00054794,7]
[330008189,1718927440123,-500.0,0.00054794,120]
[330008190,1718927440133,-608.1,0.00054794,120]
[330008191,1718927440143,-208.50340544,0.00054794,120]
[330008192,1718927440153,-500.0,0.00054794,120]
[330008193,1718927440164,-500.0,0.00054794,120]
[330008194,1718927440174,-525.27,0.00054794,120]
[330008195,1718927440184,-1621.38,0.00054794,120]
[330008196,1718927440193,-500.0,0.00054794,120]
[330008197,1718927440203,-500.0,0.00054794,120]
[330008198,1718927440213,-500.0,0.00054794,120]
[330008199,1718927440223,-500.0,0.00054794,120]
[330008200,1718927440232,-772.6,0.00054794,120]
[330008201,1718927440242,-500.0,0.00054794,120]
[330008202,1718927440251,-594.65071846,0.00054794,120]
[330008203,1718927440261,-500.0,0.00054794,120]
[330008204,1718927440272,-500.0,0.00054794,120]
[330008205,1718927440282,-1488.4,0.00054794,120]
[330008206,1718927440295,-739.16,0.00054794,120]
[330008207,1718927440305,-500.0,0.00054794,120]
[330008208,1718927440315,-500.0,0.00054794,120]
[330008209,1718927440325,-178.37014474,0.00054794,120]
[330008210,1718927440335,-500.0,0.00054794,120]
[330008211,1718927440345,-500.0,0.00054794,120]
[330008212,1718927440355,-926.03,0.00054794,120]
[330008213,1718927440365,-500.0,0.00054794,120]
[330008214,1718927440375,-500.0,0.00054794,120]
[330008215,1718927440385,-425.5353629,0.00054794,120]
[330008216,1718927440395,-340.38772256,0.00054794,120]
[330008217,1718927440405,-500.0,0.00054794,4]
[330008218,1718927440415,-1138.05,0.00054794,120]
[330008219,1718927440424,-500.0,0.00054794,120]
[330008220,1718927440434,-500.0,0.00054794,120]
[330008221,1718927440444,-1000.0,0.00054794,120]
[330008222,1718927440454,-529.49,0.00054794,120]
[330008223,1718927440464,-500.0,0.00054794,120]
[330008224,1718927440473,-592.27,0.00054794,120]
[330008225,1718927440483,-500.0,0.00054794,120]
[330008226,1718927440493,-500.0,0.00054794,120]
[330008227,1718927440503,-583.99,0.00054794,120]
[330008228,1718927440514,-18600.68,0.00054794,120]
[330008229,1718927440524,-3236.94,0.00054794,120]
[330008230,1718927440534,-500.0,0.00054794,120]
[330008231,1718927440546,-500.0,0.00054794,120]
[330008232,1718927440556,-500.0,0.00054794,120]
[330008233,1718927440566,-500.0,0.00054794,120]
[330008234,1718927440577,-500.0,0.00054794,120]
[330008235,1718927440587,-500.0,0.00054794,120]
[330008236,1718927440596,-603.98,0.00054794,120]
[330008238,1718927440607,-1641.67,0.00054794,120]
[330008240,1718927440616,-515.10463892,0.00054794,120]
[330008242,1718927440626,-500.0,0.00054794,120]
[330008244,1718927440636,-505.41390794,0.00054794,120]
[330008246,1718927440645,-1685.64,0.00054794,120]
[330008248,1718927440654,-500.0,0.00054794,120]
[330008250,1718927440664,-568.37,0.00054794,120]
[330008252,1718927440674,-500.0,0.00054794,120]
[330008254,1718927440684,-500.0,0.00054794,120]
[330008256,1718927440694,-500.0,0.00054794,120]
[330008258,1718927440703,-500.0,0.00054794,120]
[330008260,1718927440713,-500.0,0.00054794,120]
[330008262,1718927440724,-956.94,0.00054794,120]
[330008264,1718927440733,-685.84,0.00054794,120]
[330008266,1718927440744,-500.0,0.00054794,60]
[330008268,1718927440753,-52451.21,0.00054794,120]
[330008270,1718927440763,-500.0,0.00054794,120]
[330008272,1718927440773,-1136.32,0.00054794,120]
[330008278,1718927440866,-500.0,0.00054794,120]
[330008279,1718927440877,-625.63,0.00054794,120]
[330008280,1718927440887,-500.0,0.00054794,120]
[330008281,1718927440898,-500.0,0.00054794,120]
[330008282,1718927440908,-560.52,0.00054794,120]
[330008283,1718927440919,-500.0,0.00054794,120]
[330008284,1718927440928,-4321.91,0.00054794,21]
[330008285,1718927440937,-1034.31,0.00054794,120]
[330008286,1718927440947,-795.6,0.00054794,120]
[330008287,1718927440957,-1330.67,0.00054794,120]
[330008288,1718927440968,-1297.22,0.00054794,120]
[330008289,1718927440978,-250.0,0.00054794,120]
[330008291,1718927440992,-500.0,0.00054794,120]
[330008292,1718927441007,-1603.55,0.00054794,120]
[330008293,1718927441016,-7264.95,0.00054794,120]
[330008294,1718927441026,-574.67,0.00054794,120]
[330008295,1718927441036,-8458.91,0.00054794,120]
[330008296,1718927441048,-500.0,0.00054794,120]
[330008297,1718927441058,-1203.86,0.00054794,120]
[330008298,1718927441067,-682.17,0.00054794,120]
[330008299,1718927441078,-500.0,0.00054794,120]
[330008300,1718927441087,-531.62684059,0.00054794,120]
[330008301,1718927441096,-200.0,0.00054794,7]
[330008302,1718927441106,-500.0,0.00054794,120]
[330008303,1718927441115,-1278.57,0.00054794,120]
[330008304,1718927441124,-500.0,0.00054794,30]
[330008305,1718927441133,-500.0,0.00054794,120]
[330008306,1718927441143,-1639.36,0.00054794,120]
[330008307,1718927441152,-500.0,0.00054794,120]
[330008308,1718927441161,-500.0,0.00054794,120]
[330008309,1718927441172,-500.0,0.00054794,120]
[330008310,1718927441181,-659.69,0.00054794,120]
[330008311,1718927441191,-391.49373107,0.00054794,120]
[330008312,1718927441200,-536.97547353,0.00054794,120]
[330008313,1718927441210,-1875.58,0.00054794,120]
[330008314,1718927441220,-2335.16,0.00054794,120]
[330008315,1718927441229,-500.0,0.00054794,120]
[330008316,1718927441238,-1252.38,0.00054794,120]
[330008317,1718927441248,-1970.0,0.00054794,120]
[330008318,1718927441257,-2330.88,0.00054794,120]
[330008319,1718927441268,-1339.23,0.00054794,120]
[330008320,1718927441277,-739.35,0.00054794,120]
[330008321,1718927441287,-691.66,0.00054794,120]
[330008322,1718927441297,-500.0,0.00054794,120]
[330008323,1718927441306,-507.17,0.00054794,120]
[330008324,1718927441315,-500.0,0.00054794,120]
[330008325,1718927441324,-500.0,0.00054794,120]
[330008326,1718927441334,-500.0,0.00054794,120]
[330008327,1718927441343,-500.0,0.00054794,120]
[330008328,1718927441352,-1145.01,0.00054794,120]
[330008329,1718927441362,-500.0,0.00054794,120]
[330008330,1718927441371,-8188.31,0.00054794,120]
[330008331,1718927441380,-722.17,0.00054794,120]
[330008332,1718927441390,-500.0,0.00054794,120]
[330008333,1718927441399,-500.0,0.00054794,2]
[330008334,1718927441408,-500.0,0.00054794,120]
[330008335,1718927441417,-505.57757035,0.00054794,120]
[330008336,1718927441427,-9859.45,0.00054794,120]
[330008337,1718927441436,-9859.45,0.00054794,120]
[330008338,1718927441445,-9859.45,0.00054794,120]
[330008339,1718927441454,-9859.45,0.00054794,120]
[330008340,1718927441463,-9859.45,0.00054794,120]
[330008341,1718927441473,-1086.97,0.00054794,120]
[330008342,1718927441482,-9859.45,0.00054794,120]
[330008343,1718927441491,-9859.45,0.00054794,120]
[330008344,1718927441500,-9859.45,0.00054794,120]
[330008345,1718927441509,-9859.45,0.00054794,120]
[330008346,1718927441519,-9859.45,0.00054794,120]
[330008347,1718927441528,-500.0,0.00054794,120]
[330008348,1718927441539,-500.0,0.00054794,120]
[330008349,1718927441548,-500.0,0.00054794,120]
[330008350,1718927441557,-500.0,0.00054794,120]
[330008351,1718927441567,-500.0,0.00054794,120]
[330008352,1718927441578,-500.0,0.00054794,120]
[330008353,1718927441588,-500.0,0.00054794,120]
[330008354,1718927441597,-765.51,0.00054794,120]
[330008355,1718927441607,-500.0,0.00054794,120]
[330008356,1718927441616,-500.0,0.00054794,120]
[330008357,1718927441625,-500.0,0.00054794,120]
[330008358,1718927441634,-689.83,0.00054794,120]
[330008359,1718927441643,-500.0,0.00054794,120]
[330008360,1718927441652,-1181.04,0.00054794,120]
[330008361,1718927441662,-619.59,0.00054794,120]
[330008362,1718927441671,-500.0,0.00054794,120]
[330008363,1718927441680,-500.0,0.00054794,120]
[330008364,1718927441689,-2083.86,0.00054794,120]
[330008365,1718927441698,-4821.2,0.00054794,120]
[330008366,1718927441708,-500.0,0.00054794,120]
[330008367,1718927441717,-5278.7,0.00054794,120]
[330008368,1718927441727,-500.0,0.00054794,120]
[330008369,1718927441736,-2921.22,0.00054794,120]
[330008370,1718927441745,-500.0,0.00054794,120]
[330008371,1718927441754,-688.99,0.00054794,120]
[330008372,1718927441764,-2331.29,0.00054794,60]
[330008373,1718927441773,-500.0,0.00054794,120]
[330008374,1718927441782,-500.0,0.00054794,120]
[330008375,1718927441792,-264.2229839,0.00054794,120]
[330008376,1718927441801,-274.78572379,0.00054794,120]
[330008377,1718927441810,-1835.93,0.00054794,120]
[330008378,1718927441819,-500.0,0.00054794,120]
[330008379,1718927441829,-500.0,0.00054794,120]
[330008380,1718927441838,-4653.91,0.00054794,120]
[330008381,1718927441847,-500.0,0.00054794,120]
[330008382,1718927441856,-500.0,0.00054794,120]
[330008383,1718927441865,-500.0,0.00054794,120]
[330008384,1718927441875,-500.0,0.00054794,120]
[330008385,1718927441884,-525.42,0.00054794,120]
[330008386,1718927441893,-1382.22,0.00054794,120]
[330008387,1718927441902,-72600.13323614,0.000549,120]
[330008388,1718927442071,-5018.76980205,0.000549,120]
[330008389,1718927442086,-1648.13502563,0.000549,120]
[330008390,1718927442177,-4088.54921446,0.000549,120]
[330008391,1718927442189,-1148.725005,0.000549,120]
[330008392,1718927442200,-1089.4560012,0.000549,120]
[330008393,1718927442212,-1080.23999965,0.000549,120]
[330008394,1718927442383,-500.0,0.00054794,120]
[330008395,1718927442392,-3646.62394536,0.000549,120]
[330008396,1718927442502,-1094.18813609,0.000549,120]
[330008397,1718927442514,-52732.4681343,0.000549,120]
[330008398,1718927442875,3011.0240861,0.00035492,2]
[330008455,1718927513864,154.87609912,0.0004302,4]
[330008461,1718928446148,-926.50018579,0.00022,4]
[330008462,1718928449144,-73.49981421,0.00022,4]
[330008463,1718928449163,-736.80586764,0.00023,2]
[330008464,1718928545114,-2111.37413236,0.00023,2]
[330008465,1718928545135,-429.873174,0.00036484,2]
[330008466,1718928545156,-307.89959848,0.0004092,2]
[330008467,1718928545175,-550.0,0.00041094,3]
[330008468,1718928545195,-393.0,0.00041095,5]
[330008469,1718928545217,-7874.4114629,0.00041096,2]
[330008470,1718928545238,-200.0,0.00041577,120]
[330008471,1718928545258,-180.07834856,0.0004294,7]
[330008472,1718928545280,-246.4698829,0.0004294,31]
[330008473,1718928545301,-14341.9160686,0.00042941,2]
[330008474,1718928545321,-151.87451588,0.00044447,30]
[330008475,1718928545339,-163.499352,0.00044727,2]
[330008476,1718928545363,-193.36583053,0.00044863,2]
[330008477,1718928545385,-158.5370919,0.00044963,2]
[330008478,1718928545405,-865.45,0.00045,120]
[330008479,1718928545430,-596.2023791,0.00045021,2]
[330008480,1718928545449,-307.89959848,0.0004592,2]
[330008481,1718928545469,-219.0,0.00047,90]
[330008482,1718928545491,-193.36583053,0.00047321,2]
[330008488,1718928631766,-193.36583053,0.00049779,2]
[330008490,1718928631776,-307.89959848,0.0005092,2]
[330008492,1718928631786,-226.12563529,0.00051318,28]
[330008532,1718928637776,-1251.72791972,0.00051318,28]
[330008533,1718928637786,-200.0,0.00051418,120]
[330008534,1718928637796,-153.0,0.00052007,7]
[330008536,1718928637806,-153.0,0.00052007,7]
[330008537,1718928637816,-153.0,0.00052007,7]
[330008538,1718928637825,-153.0,0.00052007,7]
[330008540,1718928637835,-153.0,0.00052007,7]
[330008542,1718928637845,-153.0,0.00052007,7]
[330008544,1718928637859,-153.0,0.00052007,7]
[330008545,1718928637868,-153.0,0.00052007,7]
[330008547,1718928637878,-153.0,0.00052007,7]
[330008548,1718928637891,-193.36583053,0.00052236,2]
[330008549,1718928637901,-600.0,0.000528,2]
[330008550,1718928637910,-152.0,0.00053101,90]
[330008551,1718928637919,-152.0,0.00053418,90]
[330008553,1718928637928,-209.4,0.00053734,90]
[330008555,1718928637938,-152.0,0.00053734,90]
[330008557,1718928637948,-335.2,0.00054051,90]
[330008559,1718928637958,-152.0,0.00054051,90]
[330008560,1718928637968,-8866.0,0.000543,120]
[330008561,1718928637978,-1734.89547167,0.000545,2]
[330008562,1718928637987,-193.36583053,0.00054694,2]
[330008563,1718928637996,-5060.7540245,0.00054718,120]
[330008564,1718928638006,-429.873174,0.00054727,2]
[330008565,1718928638016,-28007.6472964,0.0005479,2]
[330008566,1718928638026,-1003.9,0.00054793,120]
[330008567,1718928638035,-500.0,0.00054794,120]
[330008568,1718928638044,-500.0,0.00054794,120]
[330008569,1718928638053,-500.0,0.00054794,120]
[330008570,1718928638063,-310.704118,0.00054794,120]
[330008571,1718928638072,-41.45215427,0.00054794,120]
[330008572,1718928638085,-363.34298626,0.00054794,120]
[330008573,1718928638095,-500.0,0.00054794,120]
[330008574,1718928638113,-500.0,0.00054794,120]
[330008575,1718928638122,-500.0,0.00054794,120]
[330008576,1718928638132,-501.02092364,0.00054794,7]
[330008577,1718928638141,-500.0,0.00054794,120]
[330008578,1718928638162,-500.0,0.00054794,120]
[330008579,1718928638173,-500.0,0.00054794,120]
[330008580,1718928638183,-503.38,0.00054794,120]
[330008581,1718928638193,-500.0,0.00054794,120]
[330008582,1718928638204,-500.0,0.00054794,120]
[330008583,1718928638213,-708.37,0.00054794,120]
[330008584,1718928638223,-500.0,0.00054794,120]
[330008585,1718928638233,-1426.38,0.00054794,120]
[330008586,1718928638243,-753.36,0.00054794,120]
[330008587,1718928638253,-500.0,0.00054794,120]
[330008588,1718928638264,-500.0,0.00054794,120]
[330008589,1718928638275,-500.0,0.00054794,120]
[330008590,1718928638284,-500.0,0.00054794,120]
[330008591,1718928638295,-500.0,0.00054794,120]
[330008592,1718928638304,-499.91626659,0.00054794,120]
[330008593,1718928638314,-500.0,0.00054794,120]
[330008594,1718928638324,-507.43,0.00054794,120]
[330008595,1718928638334,-500.0,0.00054794,120]
[330008596,1718928638343,-807.62,0.00054794,120]
[330008597,1718928638356,-500.0,0.00054794,120]
[330008598,1718928638365,-2108.71,0.00054794,120]
[330008599,1718928638375,-500.0,0.00054794,120]
[330008600,1718928638385,-500.0,0.00054794,120]
[330008601,1718928638395,-2470.03,0.00054794,120]
[330008602,1718928638405,-500.0,0.00054794,120]
[330008603,1718928638415,-500.0,0.00054794,120]
[330008604,1718928638425,-537.16,0.00054794,120]
[330008605,1718928638440,-500.0,0.00054794,120]
[330008606,1718928638449,-250.0,0.00054794,120]
[330008607,1718928638460,-500.0,0.00054794,120]
[330008608,1718928638472,-500.0,0.00054794,2]
[330008609,1718928638482,-500.0,0.00054794,120]
[330008610,1718928638492,-1405.91,0.00054794,120]
[330008611,1718928638502,-1264.0,0.00054794,120]
[330008612,1718928638512,-500.0,0.00054794,120]
[330008613,1718928638524,-885.21,0.00054794,120]
[330008614,1718928638534,-653.74,0.00054794,120]
[330008615,1718928638544,-566.72,0.00054794,7]
[330008616,1718928638554,-509.52395669,0.00054794,120]
[330008617,1718928638565,-500.0,0.00054794,120]
[330008618,1718928638574,-500.0,0.00054794,120]
[330008619,1718928638584,-500.0,0.00054794,120]
[330008620,1718928638594,-198.93827089,0.00054794,120]
[330008621,1718928638605,-500.0,0.00054794,120]
[330008622,1718928638614,-1893.87,0.00054794,120]
[330008623,1718928638625,-506.47373511,0.00054794,120]
[330008624,1718928638635,-551.92524044,0.00054794,120]
[330008625,1718928638645,-500.0,0.00054794,120]